[Event "Late-Titled-Tuesday-Blitz-June-18-2024"]
[Site "Chess.com"]
[Date "2024.06.18"]
[Round "4"]
[White "Korchmar_Vasiliy"]
[Black "mostafa_sakha"]
[Result "1/2-1/2"]
[WhiteElo "2642"]
[BlackElo "2427"]
[TimeControl "180+1"]
[EndTime "14:43:43 PDT"]
[Termination "Game drawn by repetition"]

1. e4 {[%clk 0:03:00.9]} 1... e5 {[%clk 0:02:59.6]} 2. Nf3 {[%clk 0:02:59.4]}
2... Nc6 {[%clk 0:02:59.8]} 3. Bc4 {[%clk 0:02:59.1]} 3... Nf6 {[%clk
0:02:59.6]} 4. d3 {[%clk 0:02:59.1]} 4... Be7 {[%clk 0:02:59.4]} 5. O-O {[%clk
0:02:58.9]} 5... O-O {[%clk 0:02:59.2]} 6. Nc3 {[%clk 0:02:57.8]} 6... d6 {[%clk
0:02:59]} 7. a4 {[%clk 0:02:58.2]} 7... Be6 {[%clk 0:02:57.6]} 8. Nd5 {[%clk
0:02:57.6]} 8... Na5 {[%clk 0:02:54.8]} 9. Ba2 {[%clk 0:02:53.6]} 9... c5 {[%clk
0:02:54.6]} 10. c3 {[%clk 0:02:41.3]} 10... Nc6 {[%clk 0:02:52.6]} 11. h3 {[%clk
0:02:40.6]} 11... Bxd5 {[%clk 0:02:44.2]} 12. exd5 {[%clk 0:02:40.2]} 12... Nb8
{[%clk 0:02:44.5]} 13. Re1 {[%clk 0:02:28.2]} 13... Nbd7 {[%clk 0:02:43.7]} 14.
d4 {[%clk 0:02:28.7]} 14... cxd4 {[%clk 0:02:20.4]} 15. cxd4 {[%clk 0:02:29.6]}
15... e4 {[%clk 0:02:20.5]} 16. Ng5 {[%clk 0:02:28]} 16... Re8 {[%clk
0:02:20.4]} 17. Nxe4 {[%clk 0:02:23.8]} 17... Nxe4 {[%clk 0:02:19.6]} 18. Rxe4
{[%clk 0:02:24.7]} 18... Nf6 {[%clk 0:02:16.8]} 19. Re2 {[%clk 0:02:22.5]} 19...
Qa5 {[%clk 0:02:13.6]} 20. Bd2 {[%clk 0:02:20.6]} 20... Qb6 {[%clk 0:02:12.2]}
21. Bc3 {[%clk 0:02:03.5]} 21... Bf8 {[%clk 0:02:11.3]} 22. Bc4 {[%clk
0:01:47.8]} 22... Rxe2 {[%clk 0:02:06.6]} 23. Qxe2 {[%clk 0:01:48.7]} 23... Re8
{[%clk 0:02:07]} 24. Qd3 {[%clk 0:01:48.9]} 24... a6 {[%clk 0:01:44.3]} 25. a5
{[%clk 0:01:48.7]} 25... Qc7 {[%clk 0:01:44.1]} 26. Re1 {[%clk 0:01:43.6]} 26...
g6 {[%clk 0:01:39.9]} 27. Rxe8 {[%clk 0:01:42.5]} 27... Nxe8 {[%clk 0:01:40.8]}
28. g3 {[%clk 0:01:30.2]} 28... Bg7 {[%clk 0:01:39.8]} 29. Kg2 {[%clk
0:01:30.5]} 29... h5 {[%clk 0:01:38.7]} 30. b3 {[%clk 0:01:12.8]} 30... Bf6
{[%clk 0:01:36.9]} 31. Bb4 {[%clk 0:01:10.4]} 31... Ng7 {[%clk 0:01:32.4]} 32.
g4 {[%clk 0:01:07.4]} 32... hxg4 {[%clk 0:01:30.8]} 33. hxg4 {[%clk 0:01:08.3]}
33... Qe7 {[%clk 0:01:25.7]} 34. Qg3 {[%clk 0:01:03.8]} 34... Ne8 {[%clk
0:01:18.1]} 35. Qf4 {[%clk 0:01:03.6]} 35... Bg5 {[%clk 0:01:09.8]} 36. Qf3
{[%clk 0:01:03.8]} 36... Kg7 {[%clk 0:01:03.9]} 37. Bd3 {[%clk 0:00:56.5]} 37...
Nf6 {[%clk 0:01:02.4]} 38. Qg3 {[%clk 0:00:52.1]} 38... Nxd5 {[%clk 0:01:00]}
39. Bxd6 {[%clk 0:00:50.9]} 39... Qe1 {[%clk 0:00:45.4]} 40. Qe5+ {[%clk
0:00:50.5]} 40... Qxe5 {[%clk 0:00:45.2]} 41. Bxe5+ {[%clk 0:00:45]} 41... f6
{[%clk 0:00:44.9]} 42. Bd6 {[%clk 0:00:35.1]} 42... Nf4+ {[%clk 0:00:44.7]} 43.
Bxf4 {[%clk 0:00:35.3]} 43... Bxf4 {[%clk 0:00:45.6]} 44. Be4 {[%clk 0:00:35.6]}
44... Bd2 {[%clk 0:00:42.6]} 45. Bxb7 {[%clk 0:00:35.6]} 45... Bxa5 {[%clk
0:00:42.7]} 46. Bxa6 {[%clk 0:00:34.4]} 46... Bb6 {[%clk 0:00:38.6]} 47. d5
{[%clk 0:00:34.5]} 47... Kf7 {[%clk 0:00:36.4]} 48. f3 {[%clk 0:00:23.3]} 48...
Ke7 {[%clk 0:00:35.2]} 49. Kf1 {[%clk 0:00:22.1]} 49... Kd6 {[%clk 0:00:34.7]}
50. Bc4 {[%clk 0:00:22.7]} 50... Bc5 {[%clk 0:00:19.8]} 51. Ke2 {[%clk
0:00:22.6]} 51... Bb4 {[%clk 0:00:18.8]} 52. Kd3 {[%clk 0:00:23]} 52... Ke5
{[%clk 0:00:18.9]} 53. Ke3 {[%clk 0:00:14.7]} 53... g5 {[%clk 0:00:18.8]} 54.
Kd3 {[%clk 0:00:09.5]} 54... Ba5 {[%clk 0:00:19]} 55. Kc2 {[%clk 0:00:07.3]}
55... Bb4 {[%clk 0:00:19.2]} 56. Kd1 {[%clk 0:00:05.6]} 56... Ba5 {[%clk
0:00:19.1]} 57. Ke2 {[%clk 0:00:05.9]} 57... Bb4 {[%clk 0:00:19.3]} 58. Kf2
{[%clk 0:00:05.5]} 58... Ba5 {[%clk 0:00:19.4]} 59. Kg2 {[%clk 0:00:05.9]} 59...
Bb4 {[%clk 0:00:19.8]} 60. Kf1 {[%clk 0:00:06.3]} 60... Ba5 {[%clk 0:00:19.9]}
61. Ke2 {[%clk 0:00:06.8]} 61... Bb4 {[%clk 0:00:20.3]} 62. Kd3 {[%clk
0:00:07.1]} 62... Ba5 {[%clk 0:00:20.4]} 63. Ba6 {[%clk 0:00:07.5]} 63... Kxd5
{[%clk 0:00:19.8]} 64. Bb7+ {[%clk 0:00:07.8]} 64... Kc5 {[%clk 0:00:19.4]} 65.
Ke4 {[%clk 0:00:08.2]} 65... Bc3 {[%clk 0:00:19.4]} 66. Kf5 {[%clk 0:00:08.4]}
66... Bb2 {[%clk 0:00:19.2]} 67. Ke6 {[%clk 0:00:07.7]} 67... Kb4 {[%clk
0:00:19]} 68. Bd5 {[%clk 0:00:07.8]} 68... Ba1 {[%clk 0:00:19]} 69. Kd6 {[%clk
0:00:08.2]} 69... Bb2 {[%clk 0:00:19]} 70. Be4 {[%clk 0:00:08.8]} 70... Ba1
{[%clk 0:00:19]} 71. Kd5 {[%clk 0:00:09.4]} 71... Bb2 {[%clk 0:00:19.1]} 72. Ke6
{[%clk 0:00:10]} 72... Ba1 {[%clk 0:00:19.3]} 73. Bd5 {[%clk 0:00:10.5]} 73...
Bb2 {[%clk 0:00:19.4]} 74. Kf5 {[%clk 0:00:11.2]} 74... Ba1 {[%clk 0:00:19.6]}
75. Bg8 {[%clk 0:00:12.1]} 75... Bb2 {[%clk 0:00:19.6]} 76. Bc4 {[%clk 0:00:13]}
76... Ba1 {[%clk 0:00:19.5]} 77. Be6 {[%clk 0:00:13.9]} 77... Bb2 {[%clk
0:00:19.5]} 78. Bf7 {[%clk 0:00:13.8]} 78... Ba1 {[%clk 0:00:19.5]} 79. Ke4
{[%clk 0:00:14.7]} 79... Bb2 {[%clk 0:00:19.7]} 80. Kf5 {[%clk 0:00:15.6]} 80...
Ba1 {[%clk 0:00:19.9]} 81. f4 {[%clk 0:00:16.5]} 81... gxf4 {[%clk 0:00:20.2]}
82. Kxf4 {[%clk 0:00:16.8]} 82... Bb2 {[%clk 0:00:20.3]} 83. Kf5 {[%clk
0:00:17.7]} 83... Ba1 {[%clk 0:00:20.4]} 84. Bc4 {[%clk 0:00:18.6]} 84... Bb2
{[%clk 0:00:20.4]} 85. Ke4 {[%clk 0:00:19.5]} 85... Ba1 {[%clk 0:00:20.5]} 86.
Kd5 {[%clk 0:00:20.4]} 86... Bb2 {[%clk 0:00:20.6]} 87. Ke6 {[%clk 0:00:21.3]}
87... Ba1 {[%clk 0:00:20.7]} 88. Kf7 {[%clk 0:00:22.2]} 88... Bb2 {[%clk
0:00:20.9]} 89. Ke8 {[%clk 0:00:23.1]} 89... Ba1 {[%clk 0:00:21.1]} 90. Kd7
{[%clk 0:00:24]} 90... Bb2 {[%clk 0:00:21.2]} 91. Kc6 {[%clk 0:00:24.9]} 91...
Ba1 {[%clk 0:00:21.4]} 92. Kd5 {[%clk 0:00:25.8]} 92... Bb2 {[%clk 0:00:21.5]}
93. Ke4 {[%clk 0:00:26.7]} 93... Ba1 {[%clk 0:00:21.7]} 94. Kd3 {[%clk
0:00:27.6]} 94... Bb2 {[%clk 0:00:21.9]} 95. Kc2 {[%clk 0:00:28.5]} 95... Ba1
{[%clk 0:00:21.9]} 96. Kb1 {[%clk 0:00:29.4]} 96... Be5 {[%clk 0:00:22]} 97. Kc2
{[%clk 0:00:30.3]} 97... Ba1 {[%clk 0:00:22]} 98. Kd3 {[%clk 0:00:31.2]} 98...
Bb2 {[%clk 0:00:21.2]} 99. Ke4 {[%clk 0:00:32.1]} 1/2-1/2

[Event "Late-Titled-Tuesday-Blitz-June-18-2024"]
[Site "Chess.com"]
[Date "2024.06.18"]
[Round "4"]
[White "HajiyevKanan"]
[Black "ChessLover0108"]
[Result "0-1"]
[WhiteElo "2563"]
[BlackElo "2940"]
[TimeControl "180+1"]
[EndTime "14:43:44 PDT"]
[Termination "ChessLover0108 won by checkmate"]

1. d4 {[%clk 0:03:00.9]} 1... Nf6 {[%clk 0:02:58.6]} 2. Nf3 {[%clk 0:03:00.8]}
2... d5 {[%clk 0:02:57.4]} 3. e3 {[%clk 0:03:01.2]} 3... e6 {[%clk 0:02:52.4]}
4. Be2 {[%clk 0:02:59.7]} 4... Bd6 {[%clk 0:02:52.7]} 5. O-O {[%clk 0:03:00.6]}
5... b6 {[%clk 0:02:52.6]} 6. c4 {[%clk 0:03:01.3]} 6... Bb7 {[%clk 0:02:53]} 7.
b3 {[%clk 0:03:01.8]} 7... Nbd7 {[%clk 0:02:53.1]} 8. Bb2 {[%clk 0:03:02]} 8...
O-O {[%clk 0:02:53.3]} 9. Nbd2 {[%clk 0:03:02.5]} 9... Qe7 {[%clk 0:02:53.5]}
10. Rc1 {[%clk 0:03:02.8]} 10... e5 {[%clk 0:02:37.8]} 11. dxe5 {[%clk
0:03:02.3]} 11... Nxe5 {[%clk 0:02:38.7]} 12. Nxe5 {[%clk 0:03:03]} 12... Bxe5
{[%clk 0:02:38]} 13. Bxe5 {[%clk 0:03:03.7]} 13... Qxe5 {[%clk 0:02:38.9]} 14.
Nf3 {[%clk 0:03:04.4]} 14... Qe7 {[%clk 0:02:39.2]} 15. Qc2 {[%clk 0:02:58]}
15... Rfd8 {[%clk 0:02:36.7]} 16. Rfd1 {[%clk 0:02:57.6]} 16... c5 {[%clk
0:02:31.6]} 17. Qf5 {[%clk 0:02:45.9]} 17... Rd6 {[%clk 0:02:26.4]} 18. Qg5
{[%clk 0:02:34.4]} 18... Rad8 {[%clk 0:02:13.3]} 19. Nh4 {[%clk 0:02:32]} 19...
h6 {[%clk 0:01:37]} 20. Nf5 {[%clk 0:02:31.4]} 20... hxg5 {[%clk 0:01:37]} 21.
Nxe7+ {[%clk 0:02:31.7]} 21... Kf8 {[%clk 0:01:37.9]} 22. Nf5 {[%clk 0:02:31.9]}
22... R6d7 {[%clk 0:01:37.4]} 23. cxd5 {[%clk 0:02:29.6]} 23... Bxd5 {[%clk
0:01:20.9]} 24. Bb5 {[%clk 0:02:15.9]} 24... Bc6 {[%clk 0:01:20.8]} 25. Rxd7
{[%clk 0:02:13.8]} 25... Bxd7 {[%clk 0:01:21.7]} 26. Rd1 {[%clk 0:02:10.9]}
26... g6 {[%clk 0:01:10.6]} 27. Ng3 {[%clk 0:01:53.3]} 27... Ke7 {[%clk
0:01:08.4]} 28. Be2 {[%clk 0:01:41.7]} 28... Rc8 {[%clk 0:00:50.8]} 29. Kf1
{[%clk 0:01:34.6]} 29... Be6 {[%clk 0:00:49]} 30. Ba6 {[%clk 0:01:31.1]} 30...
Rc7 {[%clk 0:00:49]} 31. Rc1 {[%clk 0:01:31.4]} 31... Nd5 {[%clk 0:00:26.1]} 32.
a3 {[%clk 0:01:10.2]} 32... Nf6 {[%clk 0:00:19]} 33. Rc3 {[%clk 0:01:00.1]}
33... Rd7 {[%clk 0:00:13.2]} 34. Ke2 {[%clk 0:00:55.5]} 34... Bg4+ {[%clk
0:00:09]} 35. f3 {[%clk 0:00:53.6]} 35... Be6 {[%clk 0:00:09.6]} 36. Bb5 {[%clk
0:00:52.2]} 36... Rd8 {[%clk 0:00:09.2]} 37. e4 {[%clk 0:00:49.9]} 37... Nd7
{[%clk 0:00:03.9]} 38. b4 {[%clk 0:00:49.4]} 38... Rc8 {[%clk 0:00:02]} 39. Bxd7
{[%clk 0:00:45.2]} 39... Kxd7 {[%clk 0:00:02.9]} 40. bxc5 {[%clk 0:00:41.3]}
40... bxc5 {[%clk 0:00:03.8]} 41. Nf1 {[%clk 0:00:39.5]} 41... Kc6 {[%clk
0:00:03.5]} 42. Ne3 {[%clk 0:00:40]} 42... Rb8 {[%clk 0:00:04]} 43. Kd3 {[%clk
0:00:33.2]} 43... Rb2 {[%clk 0:00:03.8]} 44. Rc2 {[%clk 0:00:33.7]} 44... Rb3+
{[%clk 0:00:03.8]} 45. Rc3 {[%clk 0:00:34.2]} 45... Rb1 {[%clk 0:00:04.6]} 46.
h3 {[%clk 0:00:33.3]} 46... Kb5 {[%clk 0:00:03.2]} 47. Rc2 {[%clk 0:00:32.9]}
47... Rb3+ {[%clk 0:00:02.8]} 48. Rc3 {[%clk 0:00:33.5]} 48... Rb2 {[%clk
0:00:03.4]} 49. Rc2 {[%clk 0:00:33.8]} 49... Rb1 {[%clk 0:00:04]} 50. Rc3 {[%clk
0:00:33.9]} 50... a5 {[%clk 0:00:04.1]} 51. Nd5 {[%clk 0:00:31.3]} 51... Kc6
{[%clk 0:00:02.8]} 52. Ne3 {[%clk 0:00:30]} 52... a4 {[%clk 0:00:03.3]} 53. Kc2
{[%clk 0:00:27.8]} 53... Re1 {[%clk 0:00:02.8]} 54. Kd2 {[%clk 0:00:27.9]} 54...
Ra1 {[%clk 0:00:02.5]} 55. Kc2 {[%clk 0:00:28.6]} 55... Bb3+ {[%clk 0:00:02.4]}
56. Kd3 {[%clk 0:00:24.6]} 56... Rxa3 {[%clk 0:00:02.9]} 57. Nd5 {[%clk
0:00:20.2]} 57... Kb5 {[%clk 0:00:02.2]} 58. Nc7+ {[%clk 0:00:20.2]} 58... Kb4
{[%clk 0:00:02.1]} 59. Ne8 {[%clk 0:00:19]} 59... Ra2 {[%clk 0:00:02]} 60. Nd6
{[%clk 0:00:18.7]} 60... Rxg2 {[%clk 0:00:01.2]} 61. e5 {[%clk 0:00:17.9]} 61...
Rg1 {[%clk 0:00:01.9]} 62. Ne4 {[%clk 0:00:16.1]} 62... Rd1+ {[%clk 0:00:02.4]}
63. Ke3 {[%clk 0:00:16.5]} 63... Rd5 {[%clk 0:00:02.8]} 64. f4 {[%clk
0:00:15.3]} 64... gxf4+ {[%clk 0:00:03]} 65. Kxf4 {[%clk 0:00:16.2]} 65... Rd4
{[%clk 0:00:03.9]} 66. Rc1 {[%clk 0:00:14.8]} 66... Bd5 {[%clk 0:00:03.9]} 67.
Rb1+ {[%clk 0:00:11.2]} 67... Ka5 {[%clk 0:00:04.2]} 68. Kg5 {[%clk 0:00:09.9]}
68... Rxe4 {[%clk 0:00:04.6]} 69. Rc1 {[%clk 0:00:09.8]} 69... Rxe5+ {[%clk
0:00:04.8]} 70. Kf6 {[%clk 0:00:10.6]} 70... Rf5+ {[%clk 0:00:05.7]} 71. Ke7
{[%clk 0:00:11.2]} 71... Be6 {[%clk 0:00:06.6]} 72. Kd6 {[%clk 0:00:11.5]} 72...
a3 {[%clk 0:00:06.8]} 73. h4 {[%clk 0:00:12.4]} 73... a2 {[%clk 0:00:07]} 74. h5
{[%clk 0:00:11.4]} 74... gxh5 {[%clk 0:00:07.9]} 75. Kc6 {[%clk 0:00:10.6]}
75... Kb4 {[%clk 0:00:08.1]} 76. Kb6 {[%clk 0:00:09.4]} 76... c4 {[%clk
0:00:08.5]} 77. Re1 {[%clk 0:00:09.5]} 77... c3 {[%clk 0:00:09.4]} 78. Kc6
{[%clk 0:00:09.5]} 78... Bc4 {[%clk 0:00:10.2]} 79. Kd6 {[%clk 0:00:09.8]} 79...
Rd5+ {[%clk 0:00:10.3]} 80. Kc6 {[%clk 0:00:09.6]} 80... c2 {[%clk 0:00:11.2]}
81. Rc1 {[%clk 0:00:09.8]} 81... Bb3 {[%clk 0:00:11.8]} 82. Rxc2 {[%clk
0:00:09.2]} 82... Bxc2 {[%clk 0:00:12.7]} 83. Kxd5 {[%clk 0:00:09.8]} 83... a1=Q
{[%clk 0:00:13.3]} 84. Kd6 {[%clk 0:00:09.7]} 84... Qf6+ {[%clk 0:00:12.9]} 85.
Kc7 {[%clk 0:00:08.7]} 85... Kc5 {[%clk 0:00:13.3]} 86. Kd7 {[%clk 0:00:09]}
86... Ba4+ {[%clk 0:00:13.1]} 87. Kc7 {[%clk 0:00:09]} 87... Qe7+ {[%clk
0:00:13.7]} 88. Kb8 {[%clk 0:00:09]} 88... Kb6 {[%clk 0:00:14.1]} 89. Kc8 {[%clk
0:00:09.2]} 89... Qe8# {[%clk 0:00:15]} 0-1

[Event "Late-Titled-Tuesday-Blitz-June-18-2024"]
[Site "Chess.com"]
[Date "2024.06.18"]
[Round "4"]
[White "marvinguevara"]
[Black "VirtualCoach"]
[Result "1-0"]
[WhiteElo "2156"]
[BlackElo "2338"]
[TimeControl "180+1"]
[EndTime "14:43:48 PDT"]
[Termination "marvinguevara won by checkmate"]

1. e4 {[%clk 0:03:00.9]} 1... c5 {[%clk 0:02:59.3]} 2. Nf3 {[%clk 0:03:01.4]}
2... d6 {[%clk 0:02:59.4]} 3. d4 {[%clk 0:03:01.3]} 3... cxd4 {[%clk 0:03:00.3]}
4. Nxd4 {[%clk 0:03:01.8]} 4... Nf6 {[%clk 0:03:00.9]} 5. Nc3 {[%clk 0:03:01.6]}
5... a6 {[%clk 0:03:01.5]} 6. Be2 {[%clk 0:03:02.3]} 6... e5 {[%clk 0:03:00.7]}
7. Nb3 {[%clk 0:03:01.8]} 7... Be6 {[%clk 0:03:00.3]} 8. f4 {[%clk 0:03:00.3]}
8... Be7 {[%clk 0:02:52.6]} 9. O-O {[%clk 0:02:55.9]} 9... O-O {[%clk
0:02:51.7]} 10. Be3 {[%clk 0:02:54.5]} 10... b5 {[%clk 0:02:47.3]} 11. f5 {[%clk
0:02:46]} 11... Bc4 {[%clk 0:02:46.7]} 12. Bxc4 {[%clk 0:02:46.2]} 12... bxc4
{[%clk 0:02:47.5]} 13. Nd2 {[%clk 0:02:46.2]} 13... Qc7 {[%clk 0:02:45.5]} 14.
g4 {[%clk 0:02:46]} 14... h6 {[%clk 0:02:36.3]} 15. g5 {[%clk 0:02:41.1]} 15...
hxg5 {[%clk 0:02:35.3]} 16. Bxg5 {[%clk 0:02:40.9]} 16... Qb6+ {[%clk
0:02:32.8]} 17. Kh1 {[%clk 0:02:39.2]} 17... Qxb2 {[%clk 0:02:32.3]} 18. Bxf6
{[%clk 0:02:38.1]} 18... Bxf6 {[%clk 0:02:30.1]} 19. Nd5 {[%clk 0:02:37.6]}
19... Bg5 {[%clk 0:02:19]} 20. Nxc4 {[%clk 0:02:33.6]} 20... Qb5 {[%clk
0:02:13.4]} 21. Nxd6 {[%clk 0:02:32.5]} 21... Qa4 {[%clk 0:02:12.7]} 22. Qg4
{[%clk 0:02:29.1]} 22... f6 {[%clk 0:02:06.6]} 23. Ne7+ {[%clk 0:02:26.7]} 23...
Kh7 {[%clk 0:01:54.8]} 24. Qh5+ {[%clk 0:02:20.4]} 24... Bh6 {[%clk 0:01:54.7]}
25. Qg6+ {[%clk 0:02:20.5]} 25... Kh8 {[%clk 0:01:54.7]} 26. Nf7+ {[%clk
0:02:21.4]} 26... Rxf7 {[%clk 0:01:54.3]} 27. Qxf7 {[%clk 0:02:10.3]} 27...
Qxe4+ {[%clk 0:01:54.6]} 28. Kg1 {[%clk 0:02:09.7]} 28... Be3+ {[%clk
0:01:55.1]} 29. Rf2 {[%clk 0:02:10]} 29... Bxf2+ {[%clk 0:01:53.1]} 30. Kxf2
{[%clk 0:02:10.1]} 30... Qf4+ {[%clk 0:01:39.5]} 31. Ke2 {[%clk 0:02:07.2]}
31... Qe4+ {[%clk 0:01:39.2]} 32. Kf2 {[%clk 0:01:53]} 32... Qd4+ {[%clk
0:01:27.4]} 33. Ke2 {[%clk 0:01:47.1]} 33... Qg4+ {[%clk 0:01:26.4]} 34. Kd2
{[%clk 0:01:42.3]} 34... Nc6 {[%clk 0:01:25.8]} 35. Nxc6 {[%clk 0:01:27.7]}
35... Qg2+ {[%clk 0:01:25.2]} 36. Kc1 {[%clk 0:01:25.7]} 36... Qxc6 {[%clk
0:01:24.5]} 37. Rb1 {[%clk 0:01:13.8]} 37... Rc8 {[%clk 0:01:22.4]} 38. Qb3
{[%clk 0:00:55.7]} 38... Qh1+ {[%clk 0:01:20.5]} 39. Kb2 {[%clk 0:00:54.8]}
39... Qxh2 {[%clk 0:01:20.1]} 40. Ka1 {[%clk 0:00:49.7]} 40... Qh4 {[%clk
0:01:17.1]} 41. c3 {[%clk 0:00:47.4]} 41... Qh3 {[%clk 0:01:14.9]} 42. Rc1
{[%clk 0:00:44]} 42... a5 {[%clk 0:01:05.5]} 43. Qb7 {[%clk 0:00:42]} 43... Rxc3
{[%clk 0:01:01.2]} 44. Rh1 {[%clk 0:00:41.6]} 44... Kh7 {[%clk 0:00:27.3]} 45.
Rxh3+ {[%clk 0:00:38.9]} 45... Rxh3 {[%clk 0:00:28.1]} 46. Qg2 {[%clk
0:00:37.4]} 46... Rh6 {[%clk 0:00:25.2]} 47. Kb2 {[%clk 0:00:29.4]} 47... e4
{[%clk 0:00:21.8]} 48. Qxe4 {[%clk 0:00:27.8]} 48... Rh2+ {[%clk 0:00:18.3]} 49.
Kb3 {[%clk 0:00:25.1]} 49... Rh3+ {[%clk 0:00:18.2]} 50. Ka4 {[%clk 0:00:22.5]}
50... Rh2 {[%clk 0:00:18.6]} 51. Qe6 {[%clk 0:00:18.2]} 51... Kh6 {[%clk
0:00:15.9]} 52. Kxa5 {[%clk 0:00:18.1]} 52... Kg5 {[%clk 0:00:15.7]} 53. Kb6
{[%clk 0:00:15.2]} 53... Rb2+ {[%clk 0:00:14]} 54. Kc5 {[%clk 0:00:13.6]} 54...
Rc2+ {[%clk 0:00:13.6]} 55. Kd4 {[%clk 0:00:12.2]} 55... Rd2+ {[%clk 0:00:14]}
56. Ke3 {[%clk 0:00:10]} 56... Rd1 {[%clk 0:00:14.4]} 57. Kf2 {[%clk 0:00:10.1]}
57... Rd2+ {[%clk 0:00:14.1]} 58. Ke1 {[%clk 0:00:08.4]} 58... Rd4 {[%clk
0:00:10.8]} 59. Qe3+ {[%clk 0:00:07.9]} 59... Rf4 {[%clk 0:00:10.5]} 60. a4
{[%clk 0:00:02.1]} 60... Kxf5 {[%clk 0:00:10.6]} 61. a5 {[%clk 0:00:01.6]} 61...
Re4 {[%clk 0:00:09.4]} 62. Qxe4+ {[%clk 0:00:01.7]} 62... Kxe4 {[%clk
0:00:09.9]} 63. a6 {[%clk 0:00:02.4]} 63... f5 {[%clk 0:00:10.1]} 64. a7 {[%clk
0:00:03.3]} 64... Kf3 {[%clk 0:00:10.5]} 65. a8=Q+ {[%clk 0:00:04.2]} 65... Kg3
{[%clk 0:00:10.9]} 66. Kf1 {[%clk 0:00:04.5]} 66... g5 {[%clk 0:00:11.1]} 67.
Qg8 {[%clk 0:00:05.2]} 67... g4 {[%clk 0:00:11.1]} 68. Qb3+ {[%clk 0:00:06.1]}
68... Kh4 {[%clk 0:00:09.6]} 69. Kg1 {[%clk 0:00:04.9]} 69... f4 {[%clk
0:00:09.9]} 70. Qb8 {[%clk 0:00:04]} 70... Kg3 {[%clk 0:00:08.7]} 71. Qb3+
{[%clk 0:00:03.7]} 71... f3 {[%clk 0:00:09]} 72. Qb8+ {[%clk 0:00:04.2]} 72...
Kh3 {[%clk 0:00:09.1]} 73. Kf2 {[%clk 0:00:04.4]} 73... Kh4 {[%clk 0:00:08.3]}
74. Qh8+ {[%clk 0:00:03.6]} 74... Kg5 {[%clk 0:00:08.5]} 75. Qg7+ {[%clk
0:00:04.5]} 75... Kf4 {[%clk 0:00:08.5]} 76. Qd4+ {[%clk 0:00:05]} 76... Kg5
{[%clk 0:00:08.7]} 77. Kg3 {[%clk 0:00:05.7]} 77... f2 {[%clk 0:00:09.1]} 78.
Qxg4+ {[%clk 0:00:06.2]} 78... Kh6 {[%clk 0:00:08]} 79. Kxf2 {[%clk 0:00:06]}
79... Kh7 {[%clk 0:00:06.6]} 80. Ke3 {[%clk 0:00:06.6]} 80... Kh6 {[%clk
0:00:06.7]} 81. Kd4 {[%clk 0:00:07.5]} 81... Kh7 {[%clk 0:00:07.6]} 82. Kd5
{[%clk 0:00:08.4]} 82... Kh8 {[%clk 0:00:08.5]} 83. Ke6 {[%clk 0:00:09.3]} 83...
Kh7 {[%clk 0:00:07.3]} 84. Kf7 {[%clk 0:00:10.2]} 84... Kh8 {[%clk 0:00:07.1]}
85. Qg7# {[%clk 0:00:10]} 1-0